Cogmind - Beta 13 X2 @@@ ROGUE MODE // 2024.02.01 @ 18:53:07 Player: IzRey Result: Destroyed by C-17 Slicer with Concussive RPG Performance ------------- Evolutions (2) 1000 Regions Visited (3) 600 Robots Destroyed (10) 50 Value Destroyed (82) 82 Prototype IDs (0) 0 Alien Tech Used (0) 0 Bonus (0) 0 TOTAL SCORE: 1732 Bonus ------- None Cogmind --------- Core Integrity 0/550 Matter 300/300 Energy 99/100 System Corruption 2% Temperature Cool (0) Movement Core (50) Location -8/Materials Parts ------- > --- POWER (1) -------- (None) > --- PROPULSION (4) --- (None) > --- UTILITY (4) ------ Visual Processing Unit Improved Terrain Scan Processor > --- WEAPON (2) ------- (None) > --- INVENTORY (5) ---- Ion Engine Light Deuterium Engine Improved Terrain Scanner Grenade Launcher Great Maul Peak State ------------ > --- POWER ------------ Light Ion Engine > --- PROPULSION ------- Flight Unit Flight Unit > --- UTILITY ---------- Visual Processing Unit Improved Terrain Scan Processor System Shield > --- WEAPON ----------- Small Laser Great Maul > --- INVENTORY -------- Ion Engine Light Deuterium Engine Improved Terrain Scanner Grenade Launcher [Rating: 15] Favorites ----------- Power Light Ion Engine Engine Light Ion Engine Propulsion Flight Unit Flight Unit Flight Unit Utility Visual Processing Unit Device Improved Terrain Scanner Processor Visual Processing Unit Hackware System Shield Protection Light Armor Plating Weapon Small Laser Energy Gun Small Laser Impact Weapon Great Maul Build | -11 -10 -9 -8 ------- Run | Yrd Mat Mat Mat Slots Evolved 4 | . . 2 2 Power . | . . . . Propulsion 2 | . . 1 1 Utility 2 | . . 1 1 Weapon . | . . . . Parts Attached 15 | 2 . 6 7 Power 1 | . . . 1 Engine 1 | . . . 1 Core . | . . . . Reactor . | . . . . Propulsion 2 | . . . 2 Treads . | . . . . Leg . | . . . . Wheel . | . . . . Hover . | . . . . Flight 2 | . . . 2 Utility 6 | 1 . 4 1 Device 1 | 1 . . . Storage . | . . . . Processor 3 | . . 3 . Hackware 1 | . . . 1 Protection 1 | . . 1 . Artifact . | . . . . Weapon 6 | 1 . 2 3 Energy Gun 4 | 1 . 2 1 Energy Cannon . | . . . . Ballistic Gun . | . . . . Ballistic Cannon . | . . . . Launcher . | . . . . Special Weapon . | . . . . Impact Weapon 2 | . . . 2 Slashing Weapon . | . . . . Piercing Weapon . | . . . . Special Melee Weapon . | . . . . Unidentified Prototypes . | . . . . Parts Lost 8 | . . 4 4 Power . | . . . . Propulsion 2 | . . . 2 Utility 3 | . . 2 1 Weapon 3 | . . 2 1 Highest Loss Streak 3 | . . 3 3 To Critical Strikes . | . . . . Average Slot Usage (%) 38 | . 28 39 41 Engine 1 | . . . 3 Flight 3 | . . . 9 Device 5 | . 14 5 . Processor 15 | . . 18 18 Energy Gun 10 | . 14 13 4 Impact Weapon 1 | . . . 4 Naked Turns . | . . . . Heaviest Build 8 | 3 3 5 8 Greatest Support 8 | 3 3 3 8 Greatest Overweight (x) 1 | . . 1 1 Average Overweight (x) . | . . . . Largest Inventory Capacity 5 | 5 5 5 5 Average Capacity 5 | 5 5 5 5 Most Carried 5 | 4 5 5 5 Average Carried 4 | 3 4 4 4 Final Capacity 5 | 5 5 5 5 Final Carried 5 | 4 5 5 5 Class Distribution -------------------- 90% | Mutant 9% | Scout Dominant Class ---------------- Mutant | -10/Materials Mutant | -9/Materials Mutant | -8/Materials Resources | -11 -10 -9 -8 ----------- Run | Yrd Mat Mat Mat Matter Collected 315 | 220 . 40 55 Remotely . | . . . . Salvage Created 268 | 162 . 53 53 Parts 13 | 8 . 1 4 Haulers Intercepted 1 | . . 1 . Recyclers Shooed . | . . . . Parts Field Recycled . | . . . . Retrieved Matter . | . . . . Parts Self-Destructed . | . . . . Prevented . | . . . . Kills | -11 -10 -9 -8 ------- Run | Yrd Mat Mat Mat Combat Hostiles Destroyed 3 | . . . 3 Guns 2 | . . . 2 Classes Destroyed 5 | 2 . 1 2 Tunneler 4 | 4 . . . Hauler 1 | . . 1 . Recycler 1 | 1 . . . Operator 1 | . . . 1 Swarmer 3 | . . . 3 Best Kill Streak 5 | 5 . 1 1 Combat Bots Only 1 | . . . 1 Max Kills in Single Turn 1 | 1 . 1 1 Gunslinging . | . . . . Exploded . | . . . . Melee . | . . . . Uniques/NPCs Destroyed . | . . . . Combat | -11 -10 -9 -8 -------- Run | Yrd Mat Mat Mat Hostile Shots Fired 152 | . 1 72 79 Missed 54 | . 1 28 25 Damage Taken 1402 | . . 660 742 Core 938 | . . 377 561 Absorbed by Shields . | . . . . Core Remaining (%) 68 | 100 100 5 . Volleys Fired 40 | 24 2 3 11 Largest 1 | 1 1 1 1 Hottest 50 | 50 50 50 40 Shots Fired 40 | 24 2 3 11 Gun 40 | 24 2 3 11 Cannon . | . . . . Launcher . | . . . . Special . | . . . . Kinetic . | . . . . Thermal 40 | 24 2 3 11 Explosive . | . . . . Electromagnetic . | . . . . Robot Hit Streak 11 | 11 4 3 2 Robot Miss Streak 4 | 2 1 . 4 Penetration Max . | . . . . Secondary Targets . | . . . . Shots Hit Robots 28 | 19 1 3 5 Core Hits 10 | 6 . 2 2 Critical Kills . | . . . . Critical Parts Destroyed . | . . . . Critical Strikes 2 | 1 . 1 . Burn 2 | 1 . 1 . Melee Attacks 3 | . . . 3 Impact 3 | . . . 3 Slashing . | . . . . Piercing . | . . . . Sneak Attacks 1 | . . . 1 Combat Hostiles . | . . . . Follow-up Attacks . | . . . . Damage Inflicted 504 | 248 12 39 205 Guns 331 | 248 12 39 32 Cannons . | . . . . Explosions . | . . . . Melee 155 | . . . 155 Ramming 18 | . . . 18 Kinetic . | . . . . Thermal 331 | 248 12 39 32 Explosive . | . . . . Electromagnetic . | . . . . Impact 155 | . . . 155 Slashing . | . . . . Piercing . | . . . . Highest Corruption 2 | . . 1 2 Average Corruption 1 | . . 1 2 Corruption Purged . | . . . . Corruption Blocked . | . . . . Effects 3 | . . 3 . Message Errors 1 | . . 1 . Energy Discharges 1 | . . 1 . Alerts 1 | . . 1 . Overload Shots . | . . . . Overflow Damage 125 | . . . 125 Projectiles . | . . . . Explosions . | . . . . Melee 125 | . . . 125 Knockbacks 2 | . . . 2 Impact 2 | . . . 2 Kinetic . | . . . . Secondary . | . . . . Self-Inflicted Damage 18 | . . . 18 Shots . | . . . . Rammed . | . . . . Targets Rammed . | . . . . Kicked . | . . . . Crushed . | . . . . Highest Temperature 25 | 25 25 22 25 Average Temperature 17 | 25 25 10 16 Received Heat Transfer 465 | . . 204 261 Siege Activations . | . . . . Robots Corrupted . | . . . . Combat Hostiles . | . . . . Parts Fried 1 | . . . 1 Impact Corruptions 6 | . . . 6 Robots Melted . | . . . . Combat Hostiles . | . . . . Parts Melted 1 | 1 . . . Heat Transferred 1111 | 814 37 185 75 Parts Sabotaged . | . . . . Parts Stolen . | . . . . Parts Stripped . | . . . . Power Chain Reactions . | . . . . Missiles Intercepted . | . . . . Alert | -11 -10 -9 -8 ------- Run | Yrd Mat Mat Mat Peak Influence 360 | 25 61 358 360 Initial 150 | . 16 25 150 Average 141 | 9 30 136 271 Maximum Alert Level 1 | . . 1 1 Low Security (%) 67 | 100 100 83 12 Level 1 32 | . . 16 87 Level 2 . | . . . . Level 3 . | . . . . Level 4 . | . . . . Level 5 . | . . . . High Security . | . . . . Max Security . | . . . . Squads Dispatched 6 | . . 2 4 Investigation 2 | . . 1 1 Extermination . | . . . . Reinforcement 4 | . . 1 3 Assault . | . . . . Garrison . | . . . . Intercept . | . . . . Searches Triggered . | . . . . Construction Impeded . | . . . . Haulers Reinforced . | . . . . Active Scanning Responses . | . . . . Cargo Convoy Interrupts . | . . . . Stealth | -11 -10 -9 -8 --------- Run | Yrd Mat Mat Mat Distress Signals 3 | . 1 1 1 Communications Jammed . | . . . . Distress Signals . | . . . . Times Spotted 61 | . 3 30 28 Peak Tracking Total 17 | . 5 17 14 Tactical Retreats 10 | . . 6 4 Traps | -11 -10 -9 -8 ------- Run | Yrd Mat Mat Mat Traps Triggered 3 | . . 2 1 Indirectly . | . . . . Trap Hack Attempts . | . . . . Triggered . | . . . . Disarmed . | . . . . Reprogrammed . | . . . . Reused . | . . . . Traps Extracted . | . . . . Installed . | . . . . Triggered . | . . . . Machines | -11 -10 -9 -8 ---------- Run | Yrd Mat Mat Mat Machines Disabled . | . . . . Max in Single Turn . | . . . . Machines Repaired . | . . . . Machines Dismantled . | . . . . Machines Sabotaged . | . . . . Overloaded Fab Kills . | . . . . Hacking | -11 -10 -9 -8 --------- Run | Yrd Mat Mat Mat Machines Accessed 6 | . 1 3 2 Terminals 6 | . 1 3 2 Fabricators . | . . . . Repair Stations . | . . . . Recycling Units . | . . . . Scanalyzers . | . . . . Garrison Access . | . . . . Total Hacks 24 | . 5 11 8 Successful 9 | . 2 3 4 Failed 15 | . 3 8 4 Catastrophic 2 | . . 2 . Database Lockouts . | . . . . Manual 19 | . 5 9 5 Terminals 24 | . 5 11 8 Fabricators . | . . . . Repair Stations . | . . . . Recycling Units . | . . . . Scanalyzers . | . . . . Garrison Access . | . . . . Terminal Hacks 6 | . 2 2 2 Robot Analysis 1 | . 1 . . Terminal Index 3 | . 1 1 1 Locate Traps 2 | . . 1 1 Fabricator Hacks . | . . . . Repair Station Hacks . | . . . . Recycling Unit Hacks . | . . . . Scanalyzer . | . . . . Garrison Access Hacks . | . . . . Unauthorized Hacks 3 | . . 1 2 Terminals 3 | . . 1 2 Botnet 3 | . . 1 2 Fabricators . | . . . . Repair Stations . | . . . . Recycling Units . | . . . . Scanalyzers . | . . . . Garrison Access . | . . . . Data Cores Recovered . | . . . . Used . | . . . . Hacking Detections 6 | . 1 3 2 Full Trace Events 1 | . . 1 . Feedback Events . | . . . . Feedback Blocked . | . . . . Robot Schematics Acquired . | . . . . Robots Built . | . . . . Authchips . | . . . . Time . | . . . . Total Robot Build Rating . | . . . . Part Schematics Acquired . | . . . . Parts Built . | . . . . Authchips . | . . . . Time . | . . . . Total Part Build Rating . | . . . . Parts Repaired . | . . . . Time . | . . . . Parts Recycled . | . . . . Recycled Matter . | . . . . Retrieved Matter . | . . . . Retrieved Components . | . . . . Parts Scanalyzed . | . . . . Part Schematics Acquired . | . . . . Parts Damaged . | . . . . Bothacking | -11 -10 -9 -8 ------------ Run | Yrd Mat Mat Mat Used RIF Installer . | . . . . Robots Hacked . | . . . . Non-combat . | . . . . Combat . | . . . . Robot Hacks Applied . | . . . . Relay Couplers Released . | . . . . Fabnet Peak Effective % . | . . . . Robots Rewired . | . . . . Allies Hacked . | . . . . Hacks Repelled . | . . . . Allies | -11 -10 -9 -8 -------- Run | Yrd Mat Mat Mat Total Allies . | . . . . Largest Group . | . . . . Highest-Rated Group . | . . . . Highest-Rated Ally . | . . . . Total Orders . | . . . . Ally Attacks . | . . . . Total Damage . | . . . . Kills . | . . . . Allies Corrupted . | . . . . Allies Melted . | . . . . Intel | -11 -10 -9 -8 ------- Run | Yrd Mat Mat Mat Robot Analysis Total 1 | . 1 . . Derelict Logs Recovered . | . . . . Drone Launches . | . . . . Drone Recoveries . | . . . . Exploration | -11 -10 -9 -8 ------------- Run | Yrd Mat Mat Mat Turns Passed 593 | 82 91 250 170 Spaces Moved 868 | 53 138 390 287 Core 676 | 53 138 390 95 Treads . | . . . . Legs . | . . . . Wheels . | . . . . Hover . | . . . . Flight 192 | . . . 192 Fastest Speed 37 | 50 50 50 37 Average Speed 49 | 50 50 55 42 Slowest Speed 120 | 50 50 100 120 Overloaded Moves . | . . . . Propulsion Burnouts . | . . . . Robots Hopped . | . . . . Cave-ins Triggered . | . . . . Exploration Rate (%) 29 | 3 40 47 28 Regions Visited 3 Branch Regions . Pre-discovered Areas . | . . . . Known Exits Taken . | . . . . Unknown Exits Taken 3 | 1 1 1 . Scrap Searched . | . . . . Spaces Dug . | . . . . Terrain Destroyed . | . . . . Melee . | . . . . Projectile . | . . . . AOE . | . . . . Terrain Rammed 1 | . . . 1 Walls Destroyed 1 | . . . 1 Machines Disabled . | . . . . Actions | -11 -10 -9 -8 --------- Run | Yrd Mat Mat Mat Total 977 | 83 157 420 317 Wait 38 | . 15 19 4 Move 865 | 52 137 389 287 Hop . | . . . . Pick Up 8 | 5 2 1 . Fast Attach 11 | 1 . 5 5 Attach 4 | 1 . 1 2 Detach 4 | . . 1 3 Swap . | . . . . Drop 3 | . 1 1 1 Fire 40 | 24 2 3 11 Melee 3 | . . . 3 Ram 1 | . . . 1 Kick . | . . . . Crush . | . . . . Escape Stasis . | . . . . Rewire . | . . . . Trap . | . . . . Miscellaneous . | . . . . Route ------- -11/Scrapyard -10/Materials -9/Materials (discovered 2 exits: *Mat / [*Min]) -8/Materials History --------- Turn | Location | Event 14 | -11/Scrapyard | Discovered new exit (range 15) 83 | -11/Scrapyard | Entered Materials 169 | -10/Materials | Discovered new exit (range 3) 174 | -10/Materials | Entered another Materials area 174 | -9/Materials | Evolved 2 slots: Propulsion x1, Utility x1 377 | -9/Materials | Lost 3 parts (1u2w) 379 | -9/Materials | Core integrity fell below 50% 402 | -9/Materials | Core integrity fell below 20% 403 | -9/Materials | Discovered new exit (range 11) 421 | -9/Materials | Discovered new exit (range 8) 424 | -9/Materials | Entered another Materials area 424 | -8/Materials | Evolved 2 slots: Propulsion x1, Utility x1 548 | -8/Materials | Lost 3 parts (1n1u1w) 564 | -8/Materials | Core integrity fell below 50% 569 | -8/Materials | Core integrity fell below 20% 594 | -8/Materials | Destroyed by C-17 Slicer with Concussive RPG Last Messages --------------- 00555_ O-16 Technician knocked back. 00556_ O-16 Technician system terminally corrupted. 00559_ Acquired 14 matter. 00560_ Penetrated by Slug. 00563_ Slug penetrates Wall. 00580_ Slammed into Door. 00580_ Destabilizing: System corrupted (+2). 00580_ Visual Processing Unit broken. 00580_ Destabilizing: Short circuit. 00582_ W-25 Informer sends out distress signal. 00583_ K-01 Serf collects debris. 00584_ U-05 Engineer builds a Door. 00586_ K-01 Serf collects debris. 00587_ K-01 Serf destroyed. 00588_ Acquired 12 matter. 00591_ ALERT: Suspicious intruders detected, dispatching Cutter reinforcements to area. 00592_ K-01 Serf collects debris. 00593_ ALERT: Hostiles spotted, dispatching reinforcements to Terminal M001. Map ----- +----------------------------------------------------+ | | | | | | | | | | | | | ?????????????????????????????????????????????????? | | ?????????????????????????????????????????????????? | | ?????????????????????????????????????????????????? | | ?????????????????????????????????????????????????? | | ????#######################??????????????????????? | | ????# # #??????????????????????? | | ##### # """ !#??????????????????????? | | # # """ #??????????????????????? | | "" ####+####### # """ #??????????????????????? | | "" ## #??# # #??????????????????????? | | "" ## T #??# # ]??????????+###??????????? | | ## ! #??# ###+########## #??????????? | | = ## #### * #??????????? | | ###+## %+[ ???????? | | ### + #### c #??????????? | | ] # ######### "" ####### #??????????? | | ] # #???????#"Gc gc # T #?????##??????????? | | # #???????# "" g # #?????????????????? | | " # #???######## """"" # ! #?????????????????? | | " # #???# # """"" @# #?????????????????? | | # #???# # ^""""" # #?????????????????? | | ### #???# =#^ """"" # #?????????????????? | | ## ##### # """"% # #?????????????????? | | + # """"" # ] #?????????????????? | | ######## / # %"""" #] #?##/###??????????? | | ############/### r ###+### #??????????? | | ] ^ % %= #??????????? | | ^ """k% * T #??????????? | | """"" #??????????? | | ###+##### """"" # #??????????? | | #" """ """"" ## ##??????????? | | """ #T """ """"" #? #???????????? | | """ #" """ """"" #?? #???????????? | | """ ## """ """""Y #?? #???????????? | | ## #??? #???????????? | | """ ## ! #????#???????????? | | """ #### ############+#### #????????????????? | | ?"" #??# #????????? ?# #????????????????? | | ??? #??# #???????""" # #????????????????? | | ????#+#???# #????? """ "Y" # #????????????????? | | ##### ##### #??? """ """ # #????????????????? | | #??# # #????????????????? | | ####+##+#???#??########## #????????????????? | | #?? #???????????????? #????????????????? | +----------------------------------------------------+ Best States ------------- Heat Dissipation 31 Energy Generation 10 Energy Capacity 125 Matter Stores 300 Matter Capacity 300 Sight Range 18 Terrain Scan Range 16 Terrain Scan Density 110 Armor Coverage 150 Evasion (%) 62 Defensive Hacking 10 Item Schematics ----------------- None Robot Schematics ------------------ None Fabricated ------------ Nothing Alien Tech Used ----------------- None Achievements -------------- None Challenges ------------ None Game ------ Seed CloakingCannonKatana Manual? 0 Play Time 00:19:02 Cumulative 587.9 hours Start 2024.02.01 @ 18:34:55 End 2024.02.01 @ 18:53:07 Sessions 1 Manual Loads 0 Difficulty Rogue Special Mode None Game No. 95 Rogue 78 Adventurer 17 Explorer 0 Win Type - Total 2 Types 2/0/0/0/0/0/0/0/0 Lore% 56 Gallery% 67 Achievement% 56 Wizard Run 0 Options --------- ASCII 0 Keyboard 1 Movement Vi Keybinds 0 Fullscreen 1 Font 18/Terminus Map View 76x50 Zoom Use 0% Tactical HUD 1 Map Filters NONE Filters NONE Steam 1 RUN: 644efa9a-74ef-492a-b2c0-13070592f63c